fUSD/lending_fUSD_20240107
["ID","MTS","AMOUNT","RATE_DAILY","PERIOD"]
[310710153,1704647611659,-500.0,0.00035616,2]
[310710154,1704647611670,-500.0,0.00035616,2]
[310710155,1704647611682,-493.62,0.00035616,2]
[310710156,1704647611693,-500.0,0.00035616,2]
[310710157,1704647611703,-1204.64,0.00035616,2]
[310710158,1704647611713,-500.0,0.00035616,2]
[310710159,1704647611724,-500.0,0.00035616,2]
[310710160,1704647611734,-1644.53,0.00035616,2]
[310710161,1704647611746,-172.32,0.00035616,2]
[310710162,1704647611756,-1204.64,0.00035616,2]
[310710163,1704647611765,-515.19,0.00035616,2]
[310710164,1704647611775,-500.0,0.00035616,2]
[310710165,1704647611784,-500.0,0.00035616,2]
[310710166,1704647611793,-500.0,0.00035616,2]
[310710167,1704647611802,-299.67817247,0.00035616,2]
[310710168,1704647611811,-515.19,0.00035616,2]
[310710169,1704647611821,-500.0,0.00035616,2]
[310710170,1704647611830,-1204.64,0.00035616,2]
[310710171,1704647611840,-500.0,0.00035616,2]
[310710172,1704647611849,-1644.53,0.00035616,2]
[310710173,1704647611858,-500.0,0.00035616,2]
[310710174,1704647611867,-153.84,0.00035616,2]
[310710175,1704647611877,-155.0,0.00035617,2]
[310710176,1704647611886,-155.80831799,0.00035619,14]
[310710177,1704647611897,-1167.05297304,0.00035626,14]
[310710178,1704647611907,-330.11117785,0.00035627,14]
[310710179,1704647611916,-500.0,0.00035636,2]
[310710180,1704647611927,-537.4,0.00035636,2]
[310710181,1704647611936,-804.24,0.00035636,2]
[310710182,1704647611946,-804.24,0.00035636,2]
[310710183,1704647611956,-804.24,0.00035636,2]
[310710184,1704647611966,-804.24,0.00035636,2]
[310710185,1704647611975,-804.43,0.00035636,2]
[310710186,1704647611988,-500.0,0.00035636,2]
[310710187,1704647612005,-500.0,0.00035636,2]
[310710188,1704647612018,-14566.2065119,0.00035637,2]
[310710189,1704647612027,-1269.8961645,0.00035641,14]
[310710190,1704647612037,-156.5361,0.00035665,14]
[310710191,1704647612046,-1269.8961645,0.0003568,14]
[310710192,1704647612055,-158.19184009,0.00035689,14]
[310710193,1704647612065,-204.0,0.00035708,17]
[310710194,1704647612075,-43394.0,0.00035715,20]
[310710195,1704647612085,-1007.0,0.00035715,20]
[310710196,1704647612094,-432.0,0.00035715,20]
[310710197,1704647612103,-156.8327423,0.0003573,14]
[310710198,1704647612113,-156.8327423,0.00035751,14]
[310710199,1704647612123,-150.0,0.00035762,120]
[310710200,1704647612133,-204.10979335,0.00035796,14]
[310710201,1704647612144,-1980.67,0.00035798,2]
[310710202,1704647612153,-150.0,0.000358,30]
[310710203,1704647612163,-2000.0,0.000358,2]
[310710204,1704647612173,-1167.05297304,0.00035833,14]
[310710205,1704647612184,-1167.05297304,0.00035859,14]
[310710206,1704647612194,-155.76493732,0.0003587,14]
[310710207,1704647612203,-1269.8961645,0.00035884,14]
[310710208,1704647612212,-150.0,0.0003589,7]
[310710209,1704647612222,-400.0,0.000359,13]
[310710210,1704647612231,-300.0,0.000359,13]
[310710211,1704647612242,-155.76493732,0.00035916,14]
[310710212,1704647612374,-1167.05297304,0.00035957,14]
[310710213,1704647612384,-155.76493732,0.00035957,14]
[310710214,1704647612393,-500.0,0.00035978,10]
[310710215,1704647612402,-2894.0,0.00035979,2]
[310710216,1704647612411,-2257.0,0.00035979,2]
[310710217,1704647612421,-1024.0,0.00035979,2]
[310710218,1704647612431,-200.0,0.00035987,15]
[310710219,1704647612441,-300.0,0.00035987,4]
[310710220,1704647612450,-814.88,0.00035997,2]
[310710221,1704647612460,-300.0,0.00035997,2]
[310710222,1704647612470,-313.77,0.00035997,2]
[310710223,1704647612479,-814.88,0.00035997,2]
[310710224,1704647612488,-627.54,0.00035997,2]
[310710225,1704647612500,-309.47,0.00035997,2]
[310710226,1704647612509,-587.1,0.00035997,2]
[310710227,1704647612519,-587.1,0.00035997,2]
[310710228,1704647612528,-500.0,0.00035997,2]
[310710229,1704647612538,-500.0,0.00035997,2]
[310710230,1704647612547,-500.0,0.00035997,2]
[310710231,1704647612557,-500.0,0.00035997,2]
[310710232,1704647612566,-452.6,0.00035997,2]
[310710233,1704647612575,-570.36,0.00035997,2]
[310710234,1704647612585,-570.36,0.00035997,2]
[310710235,1704647612594,-570.36,0.00035997,2]
[310710236,1704647612603,-570.36,0.00035997,2]
[310710237,1704647612613,-570.42,0.00035997,2]
[310710238,1704647612623,-389.59,0.00035997,2]
[310710239,1704647612632,-565.3,0.00035997,2]
[310710240,1704647612641,-500.0,0.00035997,2]
[310710241,1704647612651,-500.0,0.00035997,2]
[310710242,1704647612660,-500.0,0.00035997,2]
[310710243,1704647612670,-500.0,0.00035997,2]
[310710244,1704647612680,-500.0,0.00035997,2]
[310710245,1704647612690,-500.0,0.00035997,2]
[310710246,1704647612699,-500.0,0.00035997,2]
[310710247,1704647612709,-404.36,0.00035997,2]
[310710248,1704647612718,-657.91,0.00035997,2]
[310710249,1704647612728,-657.91,0.00035997,2]
[310710250,1704647612739,-657.91,0.00035997,2]
[310710251,1704647612749,-657.91,0.00035997,2]
[310710252,1704647612760,-658.02,0.00035997,2]
[310710253,1704647612769,-506.18,0.00035997,2]
[310710254,1704647612779,-506.18,0.00035997,2]
[310710255,1704647612789,-506.18,0.00035997,2]
[310710256,1704647612799,-506.18,0.00035997,2]
[310710257,1704647612809,-506.37,0.00035997,2]
[310710258,1704647612819,-199.13,0.00035997,2]
[310710259,1704647612828,-249.23,0.00035997,2]
[310710260,1704647612838,-871.13,0.00035997,2]
[310710261,1704647612847,-871.13,0.00035997,2]
[310710262,1704647612857,-871.13,0.00035997,2]
[310710263,1704647612867,-871.13,0.00035997,2]
[310710264,1704647612877,-871.34560636,0.00035997,2]
[310710265,1704647612886,-89318.36994452,0.00035998,14]
[310710266,1704647612896,-150.0,0.00035999,2]
[310710267,1704647612910,-100000.0,0.00036,6]
[310710268,1704647612920,-1000.0,0.00036,14]
[310710269,1704647612938,-150.0,0.00036,30]
[310710270,1704647612949,-131461.46274324,0.00036,2]
[310710271,1704647612958,-320821.42487667,0.00036,2]
[310710272,1704647612968,-575.39143358,0.00036,2]
[310710273,1704647612978,-11020.6843744,0.00036,3]
[310710274,1704647612987,-500.0,0.00036,10]
[310710275,1704647612999,-500000.0,0.00036,4]
[310710276,1704647613010,-10000.0,0.00036,2]
[310710277,1704647613020,-2835.59188624,0.00036,2]
[310710278,1704647613029,-2091.95,0.00036,12]
[310710279,1704647613039,-1339.98048126,0.00036,30]
[310710280,1704647613049,-11985.50099199,0.00036,4]
[310710281,1704647613059,-762.6000504,0.00036,4]
[310710282,1704647613068,-653.22,0.00036,10]
[310710283,1704647613077,-684.8829209,0.00036,2]
[310710284,1704647613087,-2000.0,0.00036,4]
[310710285,1704647613097,-250.0,0.00036,2]
[310710286,1704647613106,-1995.28,0.00036,2]
[310710287,1704647613115,-2047.0,0.00036,15]
[310710288,1704647613125,-10000.0,0.00036,15]
[310710289,1704647613134,-10000.0,0.00036,15]
[310710290,1704647613144,-10000.0,0.00036,15]
[310710291,1704647613153,-10000.0,0.00036,15]
[310710292,1704647613163,-10000.0,0.00036,15]
[310710293,1704647613172,-10000.0,0.00036,15]
[310710294,1704647613181,-11130.0,0.00036,15]
[310710295,1704647613191,-3732.0,0.00036,15]
[310710296,1704647613200,-2923.0,0.00036,15]
[310710297,1704647613210,-5330.0,0.00036,15]
[310710298,1704647613219,-153.0,0.00036,2]
[310710299,1704647613229,-153.0,0.00036,2]
[310710300,1704647613238,-153.0,0.00036,2]
[310710301,1704647613248,-153.0,0.00036,2]
[310710302,1704647613258,-153.0,0.00036,2]
[310710303,1704647613267,-153.0,0.00036,2]
[310710304,1704647613276,-153.0,0.00036,2]
[310710305,1704647613285,-153.0,0.00036,2]
[310710306,1704647613294,-153.0,0.00036,2]
[310710307,1704647613303,-153.0,0.00036,2]
[310710308,1704647613313,-153.0,0.00036,2]
[310710309,1704647613322,-153.0,0.00036,2]
[310710310,1704647613331,-153.0,0.00036,2]
[310710311,1704647613341,-153.0,0.00036,2]
[310710312,1704647613350,-153.0,0.00036,2]
[310710313,1704647613360,-153.0,0.00036,2]
[310710314,1704647613369,-153.0,0.00036,2]
[310710315,1704647613379,-153.0,0.00036,2]
[310710316,1704647613388,-153.0,0.00036,2]
[310710317,1704647613398,-153.0,0.00036,2]
[310710318,1704647613407,-153.0,0.00036,2]
[310710319,1704647613417,-153.0,0.00036,2]
[310710320,1704647613427,-153.0,0.00036,2]
[310710321,1704647613436,-153.0,0.00036,2]
[310710322,1704647613445,-153.0,0.00036,2]
[310710323,1704647613455,-153.0,0.00036,2]
[310710324,1704647613464,-153.0,0.00036,2]
[310710325,1704647613473,-153.0,0.00036,2]
[310710326,1704647613483,-153.0,0.00036,2]
[310710327,1704647613493,-150.0,0.00036029,7]
[310710328,1704647613502,-154.03566752,0.00036078,14]
[310710329,1704647613511,-5000.0,0.0003608,8]
[310710330,1704647613521,-43394.0,0.00036083,20]
[310710331,1704647613530,-1007.0,0.00036083,20]
[310710332,1704647613540,-432.0,0.00036083,20]
[310710333,1704647613550,-208.0,0.000361,2]
[310710334,1704647613559,-282.0,0.000361,2]
[310710335,1704647613569,-1400.72,0.000361,3]
[310710336,1704647613578,-1400.72,0.000361,3]
[310710337,1704647613588,-1400.72,0.000361,3]
[310710338,1704647613598,-1400.72,0.000361,3]
[310710339,1704647613607,-1400.72,0.000361,3]
[310710340,1704647613617,-1400.72,0.000361,3]
[310710341,1704647613626,-1400.72,0.000361,3]
[310710342,1704647613640,-1400.72,0.000361,3]
[310710343,1704647613650,-1400.72,0.000361,3]
[310710344,1704647613659,-1400.72,0.000361,3]
[310710345,1704647613671,-1400.72,0.000361,3]
[310710346,1704647613681,-1400.72,0.000361,3]
[310710347,1704647613692,-1400.72,0.000361,3]
[310710348,1704647613701,-1400.72,0.000361,3]
[310710349,1704647613711,-1400.72,0.000361,3]
[310710350,1704647613723,-1400.72,0.000361,3]
[310710351,1704647613732,-1400.72,0.000361,3]
[310710352,1704647613742,-1400.72,0.000361,3]
[310710353,1704647613751,-1400.72,0.000361,3]
[310710354,1704647613761,-1400.72,0.000361,3]
[310710355,1704647613770,-5000.0,0.00036134,2]
[310710356,1704647613779,-6833.67637851,0.00036146,2]
[310710357,1704647613789,-330.11117785,0.00036148,14]
[310710358,1704647613800,-155.2540555,0.00036153,14]
[310710359,1704647613810,-549.79,0.00036164,45]
[310710360,1704647613820,-1172.12,0.00036164,45]
[310710361,1704647613831,-5000.0,0.0003618,9]
[310710362,1704647613842,-150.0,0.000362,30]
[310710363,1704647613852,-1269.8961645,0.00036245,14]
[310710364,1704647613862,-5000.0,0.0003628,11]
[310710365,1704647613872,-5000.0,0.000363,10]
[310710366,1704647613883,-666.0,0.00036301,2]
[310710367,1704647613893,-150.0,0.00036337,2]
[310710368,1704647613903,-164.0,0.00036366,2]
[310710369,1704647613913,-150.0,0.00036375,7]
[310710370,1704647613923,-150.0,0.00036377,120]
[310710371,1704647613932,-5000.0,0.0003638,12]
[310710372,1704647613942,-549.79,0.00036383,47]
[310710373,1704647613951,-1172.12,0.00036383,47]
[310710374,1704647613961,-156.8327423,0.00036388,14]
[310710375,1704647613970,-150.0,0.000364,30]
[310710376,1704647613980,-500.0,0.000364,120]
[310710377,1704647613989,-150.0,0.00036401,120]
[310710378,1704647613998,-330.11117785,0.00036409,14]
[310710379,1704647614008,-153.50932307,0.00036421,14]
[310710380,1704647614018,-150.0,0.00036431,120]
[310710381,1704647614027,-1000.0,0.00036438,120]
[310710382,1704647614036,-1269.8961645,0.00036445,14]
[310710383,1704647614045,-43394.0,0.00036452,20]
[310710384,1704647614055,-1007.0,0.00036452,20]
[310710385,1704647614064,-432.0,0.00036452,20]
[310710386,1704647614073,-176.0,0.0003647,42]
[310710387,1704647614083,-300.0,0.00036472,20]
[310710388,1704647614092,-5000.0,0.0003648,14]
[310710389,1704647614101,-155.2540555,0.00036496,14]
[310710390,1704647614111,-154.91150368,0.00036497,14]
[310710391,1704647614120,-2000.0,0.000365,12]
[310710392,1704647614129,-423708.04393783,0.000365,2]
[310710393,1704647614139,-500.0,0.00036505,2]
[310710394,1704647614148,-204.10979335,0.00036523,14]
[310710395,1704647614157,-500.0,0.00036526,10]
[310710396,1704647614167,-153.84,0.0003653,2]
[310710397,1704647614177,-1269.8961645,0.00036559,14]
[310710398,1704647614187,-155.61285522,0.00036577,14]
[310710399,1704647614197,-150.0,0.00036583,7]
[310710400,1704647614206,-1167.05297304,0.00036594,14]
[310710401,1704647614215,-161.15323196,0.00036595,14]
[310710402,1704647614226,-150.0,0.000366,30]
[310710403,1704647614235,-549.79,0.00036602,49]
[310710404,1704647614245,-1172.12,0.00036602,49]
[310710405,1704647614254,-2364.77,0.00036613,15]
[310710406,1704647614264,-154.91150368,0.00036613,14]
[310710407,1704647614273,-155.2540555,0.0003662,14]
[310710408,1704647614283,-154.91150368,0.00036622,14]
[310710409,1704647614293,-50000.0,0.00036626,15]
[310710410,1704647614302,-155.2540555,0.00036627,14]
[310710411,1704647614311,-204.10979335,0.00036628,14]
[310710412,1704647614320,-10000.0,0.00036664,11]
[310710413,1704647614330,-8239.0,0.000367,58]
[310710414,1704647614341,-161.95627694,0.00036713,14]
[310710415,1704647614350,-500.0,0.0003674,7]
[310710416,1704647614360,-156.8327423,0.00036749,14]
[310710417,1704647614370,-156.8327423,0.00036759,14]
[310710418,1704647614380,-1269.8961645,0.00036766,14]
[310710419,1704647614390,-500.0,0.0003677,2]
[310710420,1704647614400,-400.0,0.0003677,2]
[310710421,1704647614411,-400.0,0.0003677,2]
[310710422,1704647614421,-1805.66,0.00036773,2]
[310710423,1704647614431,-350.3377968,0.00036779,4]
[310710424,1704647614440,-155.0,0.00036779,7]
[310710425,1704647614450,-1971.11390251,0.00036779,2]
[310710426,1704647614462,-3094.80580994,0.00036779,14]
[310710427,1704647614471,-150.0,0.000368,30]
[310710428,1704647614481,-16408.30138967,0.000368,5]
[310710429,1704647614492,-266365.17782484,0.000368,6]
[310710430,1704647622188,-273.86280445,0.00035616,2]
[310710431,1704647622200,-241.32719555,0.00035616,2]
[310710432,1704647622209,-11.09088105,0.00035616,2]
[310710433,1704647622221,-314.49519184,0.00035616,2]
[310710434,1704647622233,-174.41392711,0.00035616,2]
[310710435,1704647622242,-298.98846063,0.00035616,2]
[310710436,1704647622625,-293.55,0.00032054,2]
[310710437,1704647622635,-5000.0,0.000345,10]
[310710438,1704647622644,-905.65153937,0.00035616,2]
[310710439,1704647622654,-500.0,0.00035616,2]
[310710440,1704647622662,-1644.53,0.00035616,2]
[310710441,1704647622672,-500.0,0.00035616,2]
[310710442,1704647622682,-1204.64,0.00035616,2]
[310710443,1704647622691,-515.19,0.00035616,2]
[310710444,1704647622701,-500.0,0.00035616,2]
[310710445,1704647622711,-500.0,0.00035616,2]
[310710446,1704647622722,-500.0,0.00035616,2]
[310710447,1704647622733,-1644.53,0.00035616,2]
[310710448,1704647622743,-500.0,0.00035616,2]
[310710449,1704647622753,-1204.64,0.00035616,2]
[310710450,1704647622763,-515.27,0.00035616,2]
[310710451,1704647622772,-500.0,0.00035616,2]
[310710452,1704647622782,-500.0,0.00035616,2]
[310710453,1704647622791,-607.38,0.00035616,2]
[310710454,1704647622802,-1644.53,0.00035616,2]
[310710455,1704647622811,-500.0,0.00035616,2]
[310710456,1704647622822,-1204.64,0.00035616,2]
[310710457,1704647622832,-500.0,0.00035616,2]
[310710458,1704647622842,-1644.53,0.00035616,2]
[310710459,1704647622853,-500.0,0.00035616,2]
[310710460,1704647622863,-500.0,0.00035616,2]
[310710461,1704647622873,-1204.64,0.00035616,2]
[310710462,1704647622883,-1204.64,0.00035616,2]
[310710463,1704647622893,-500.0,0.00035616,2]
[310710464,1704647622903,-500.0,0.00035616,2]
[310710465,1704647622913,-619.17,0.00035616,2]
[310710466,1704647622922,-1644.53,0.00035616,2]
[310710467,1704647622931,-1204.64,0.00035616,2]
[310710468,1704647622940,-500.0,0.00035616,2]
[310710469,1704647622950,-546.9485798,0.00035616,2]
[310710470,1704647622959,-500.0,0.00035616,2]
[310710471,1704647622969,-500.0,0.00035616,2]
[310710472,1704647622979,-1644.71744746,0.00035616,2]
[310710473,1704647622989,-1204.64,0.00035616,2]
[310710474,1704647622999,-500.0,0.00035616,2]
[310710475,1704647623009,-500.0,0.00035616,2]
[310710476,1704647623019,-500.0,0.00035616,2]
[310710477,1704647623028,-33634.82217516,0.000368,6]
[310710478,1704647623038,-175361.95283723,0.000368,7]
[310710479,1704647623050,-5420.18563728,0.000368,7]
[310710480,1704647623061,-4235.81874724,0.000368,7]
[310710481,1704647623118,-114982.04277825,0.000368,7]
[310710482,1704647623127,-84003.68108385,0.000368,8]
[310710483,1704647623175,-500.0,0.00035616,2]
[310710484,1704647623184,-263.13801956,0.00035616,2]
[310710485,1704647623196,-941.50198044,0.00035616,2]
[310710486,1704647623205,-500.0,0.00035616,2]
[310710487,1704647623215,-500.0,0.00035616,2]
[310710488,1704647623223,-2548.69801948,0.000368,8]
[310710489,1704647623235,-14746.34780139,0.000368,8]
[310710490,1704647623247,-4532.60363806,0.000368,8]
[310710491,1704647623259,-6334.89762817,0.000368,8]
[310710492,1704647623270,-579.1786,0.000368,8]
[310710493,1704647623282,-67216.90103275,0.000368,8]
[310710494,1704647623293,-275.12973937,0.000368,8]
[310710495,1704647623846,-265.35962199,0.00025314,2]
[310710496,1704647623856,-3754.38265633,0.00029999,4]
[310710497,1704647623866,-403.07344523,0.00029999,2]
[310710498,1704647623876,-162.78,0.00035616,2]
[310710499,1704647623886,-500.0,0.00035616,2]
[310710500,1704647623895,-500.0,0.00035616,2]
[310710501,1704647623905,-500.0,0.00035616,2]
[310710502,1704647623914,-500.0,0.00035616,2]
[310710503,1704647624036,-500.0,0.00035616,2]
[310710504,1704647624046,-500.0,0.00035616,2]
[310710505,1704647624055,-500.0,0.00035616,2]
[310710506,1704647624064,-500.0,0.00035616,2]
[310710507,1704647624073,-727.8,0.00035616,2]
[310710508,1704647624082,-500.0,0.00035616,2]
[310710509,1704647624091,-500.0,0.00035616,2]
[310710510,1704647624100,-1204.82,0.00035616,2]
[310710511,1704647624109,-500.0,0.00035616,2]
[310710512,1704647624118,-500.0,0.00035616,2]
[310710513,1704647624127,-528.45029807,0.00035616,2]
[310710514,1704647624137,-727.8,0.00035616,2]
[310710515,1704647624147,-500.0,0.00035616,2]
[310710516,1704647624158,-500.0,0.00035616,2]
[310710517,1704647624168,-500.0,0.00035616,2]
[310710518,1704647624178,-320.62629638,0.00035616,2]
[310710519,1704647624186,-500.0,0.00035616,2]
[310710520,1704647624196,-500.0,0.00035616,2]
[310710521,1704647624206,-500.0,0.00035616,2]
[310710522,1704647624216,-727.8,0.00035616,2]
[310710523,1704647624227,-500.0,0.00035616,2]
[310710524,1704647624236,-500.0,0.00035616,2]
[310710525,1704647624246,-500.0,0.00035616,2]
[310710526,1704647624257,-500.0,0.00035616,2]
[310710527,1704647624266,-528.11379191,0.00035616,2]
[310710528,1704647624275,-727.8,0.00035616,2]
[310710529,1704647624286,-449.64,0.00035616,2]
[310710530,1704647624295,-500.0,0.00035616,2]
[310710531,1704647624304,-525.53,0.00035616,5]
[310710532,1704647624315,-500.0,0.00035616,2]
[310710533,1704647624325,-727.8,0.00035616,2]
[310710534,1704647624334,-500.0,0.00035616,2]
[310710535,1704647624343,-649.86,0.00035616,2]
[310710536,1704647624353,-525.53,0.00035616,5]
[310710537,1704647624363,-500.0,0.00035616,2]
[310710538,1704647624373,-727.8,0.00035616,2]
[310710539,1704647624382,-500.0,0.00035616,2]
[310710540,1704647624391,-500.0,0.00035616,2]
[310710541,1704647624401,-66275.0528839,0.000368,8]
[310710542,1704647624413,-1292.29361381,0.000368,8]
[310710543,1704647624425,-345.52801141,0.000368,8]
[310710544,1704647624448,-231.97524444,0.00029999,2]
[310710545,1704647624458,-418.02475556,0.00035616,5]
[310710546,1704647624469,-107.50524444,0.00035616,5]
[310710547,1704647624478,-500.0,0.00035616,2]
[310710548,1704647624488,-1589.49475556,0.000368,8]
[310710549,1704647624552,-20335.94055,0.000368,8]
[310710550,1704647624580,-264.126,0.000368,8]
[310710552,1704647661702,171.02,0.00022237,10]
[310710598,1704647929244,1000.0,0.00021125,2]
[310710661,1704648637554,-259.59190642,0.00022078,2]
[310710662,1704648637565,-553.13201144,0.00022078,2]
[310710663,1704648637575,-155.0,0.00022079,2]
[310710664,1704648637585,-181.23386478,0.00022079,2]
[310710665,1704648637594,-214.68178136,0.0002208,2]
[310710666,1704648637604,-181.23386478,0.0002208,2]
[310710667,1704648637614,-2266.11245746,0.00022083,2]
[310710668,1704648637626,-150.0,0.00022083,2]
[310710669,1704648637635,-2727.09967444,0.00022218,2]
[310710670,1704648637644,-4401.84433044,0.00022237,2]
[310710671,1704648637654,-500.0,0.00022237,2]
[310710672,1704648637664,-499.99,0.00022237,2]
[310710673,1704648637673,-3868.10813931,0.00022286,2]
[310710674,1704648637683,-699.23427772,0.00022287,2]
[310710675,1704648637693,-16296.80960834,0.00022292,2]
[310710676,1704648637702,-152.32,0.0002246,2]
[310710677,1704648637711,-197.2524744,0.00022701,2]
[310710678,1704648637720,-471.70437541,0.00022899,2]
[310710679,1704648637729,-363.22558303,0.00022899,2]
[310710680,1704648637738,-932.02592622,0.00023,2]
[310710681,1704648637747,-550.0,0.00023,3]
[310710682,1704648637757,-283.17,0.00023,2]
[310710683,1704648637767,-152.32,0.00023516,2]
[310710684,1704648637776,-338.1,0.00023566,2]
[310710685,1704648637786,-430.5164237,0.00024,2]
[310710686,1704648637794,-200.66411042,0.00024,2]
[310710687,1704648637804,-155.67956808,0.00024,2]
[310710688,1704648637813,-204.0,0.00024206,2]
[310710689,1704648637822,-210.0,0.00024291,2]
[310710690,1704648637832,-152.32,0.00024572,2]
[310710691,1704648637841,-367.2,0.00024974,2]
[310710692,1704648637851,-3034.08810881,0.00025,2]
[310710693,1704648637860,-1245.75987952,0.00025,2]
[310710694,1704648637871,-166.9760429,0.00025,2]
[310710695,1704648637881,-302.71173098,0.00025,2]
[310710696,1704648637891,-1245.75987952,0.00025,2]
[310710697,1704648637900,-292.47295802,0.00025,2]
[310710698,1704648637909,-1016.22827745,0.00025,2]
[310710699,1704648637919,-201.35180856,0.00025,2]
[310710700,1704648637928,-650.0,0.00025,2]
[310710701,1704648637937,-600.0,0.00025,3]
[310710702,1704648637947,-3422.7,0.00025025,2]
[310710703,1704648637957,-304.36095291,0.00025313,2]
[310710704,1704648637967,-586.54,0.00025325,2]
[310710705,1704648637976,-250.0,0.00025439,2]
[310710706,1704648637985,-165.84,0.00025472,2]
[310710707,1704648637995,-250.0,0.00025507,2]
[310710708,1704648638004,-1000.0,0.00025573,2]
[310710709,1704648638014,-8022.24,0.00025617,2]
[310710710,1704648638023,-152.32,0.00025629,2]
[310710711,1704648638033,-166.33,0.00025679,2]
[310710712,1704648638042,-204.0,0.00025762,4]
[310710714,1704648638052,-890.36,0.00025786,2]
[310710716,1704648638061,-338.1,0.0002583,2]
[310710718,1704648638071,-153.49,0.00025854,2]
[310710719,1704648638080,-205.07,0.00025879,2]
[310710721,1704648638090,-153.49,0.00025998,2]
[310710722,1704648638099,-163.59,0.00026005,2]
[310710723,1704648638108,-150.0,0.00026079,2]
[310710724,1704648638118,-153.49,0.00026141,2]
[310710725,1704648638127,-153.49,0.00026285,2]
[310710726,1704648638137,-586.54,0.00026304,2]
[310710727,1704648638147,-166.33,0.00026321,2]
[310710728,1704648638156,-167.0,0.00026371,2]
[310710729,1704648638166,-153.49,0.00026428,2]
[310710730,1704648638175,-153.49,0.00026572,2]
[310710731,1704648638185,-165.84,0.0002667,2]
[310710732,1704648638194,-152.32,0.00026685,2]
[310710733,1704648638203,-532.64161305,0.00026712,2]
[310710734,1704648638213,-153.49,0.00026716,2]
[310710735,1704648638222,-293.0,0.0002672,2]
[310710736,1704648638231,-153.49,0.00026859,2]
[310710737,1704648638240,-166.33,0.00026963,2]
[310710738,1704648638250,-650.0,0.00027,3]
[310710739,1704648638259,-153.49,0.00027003,2]
[310710740,1704648638268,-464.23,0.0002714,2]
[310710741,1704648638277,-153.49,0.00027147,2]
[310710742,1704648638287,-167.0,0.00027242,2]
[310710743,1704648638296,-586.54,0.00027282,2]
[310710744,1704648638305,-153.49,0.0002729,2]
[310710745,1704648638315,-204.0,0.00027318,7]
[310710746,1704648638324,-155.0,0.00027397,2]
[310710747,1704648638333,-500.0,0.00027397,2]
[310710748,1704648638342,-250.0,0.00027397,2]
[310710749,1704648638352,-762.91,0.00027397,2]
[310710750,1704648638361,-250.0,0.000274,2]
[310710751,1704648638370,-153.49,0.00027434,2]
[310710752,1704648638379,-506.5415463,0.000275,4]
[310710753,1704648638388,-762.91,0.00027556,2]
[310710754,1704648638397,-153.49,0.00027578,2]
[310710755,1704648638406,-166.33,0.00027605,2]
[310710756,1704648638416,-163.59,0.00027636,2]
[310710757,1704648638425,-762.91,0.00027714,2]
[310710758,1704648638434,-153.49,0.00027721,2]
[310710759,1704648638444,-187.05871294,0.00027772,2]
[310710760,1704648638452,-8418.02293235,0.00027772,7]
[310710761,1704648638461,-2291.32401567,0.00027772,2]
[310710762,1704648638471,-433.07482721,0.00027772,2]
[310710763,1704648638480,-687.19252022,0.00027772,2]
[310710764,1704648638489,-693.89024774,0.00027772,2]